[Event "January 2 Early 2024"]
[Site "https://www.chess.com"]
[Date "2024.01.02"]
[Round "1"]
[White "Dushyant Sharma"]
[Black "Ghosh, Chanchal Kumer"]
[Result "0-1"]
[Board "285"]
[TimeControl "180+1"]
[WhiteFideId "25065130"]
[BlackFideId "10201858"]
[WhiteElo "2550"]
[BlackElo "2023"]
[WhiteTeam "IND"]
[BlackTeam "BAN"]
[WhiteClock "0:00:13"]
[BlackClock "0:00:26"]

1. e4 {[%clk 0:02:58]}  c5 {[%clk 0:02:59]} 2. Nf3 {[%clk 0:02:55]}  d6 {[%clk 0:02:59]} 3. d4 {[%clk 0:02:55]}  cxd4 {[%clk 0:02:59]} 4. Nxd4 {[%clk 0:02:56]}  Nf6 {[%clk 0:02:58]} 5. Nc3 {[%clk 0:02:56]}  a6 {[%clk 0:02:57]} 6. f4 {[%clk 0:02:54]}  b5 {[%clk 0:02:55]} 7. a3 {[%clk 0:02:53]}  Bb7 {[%clk 0:02:55]} 8. Nf3 {[%clk 0:02:54]}  e6 {[%clk 0:02:50]} 9. Bd3 {[%clk 0:02:53]}  Be7 {[%clk 0:02:50]} 10. O-O {[%clk 0:02:52]}  O-O {[%clk 0:02:50]} 11. Kh1 {[%clk 0:02:52]}  Nbd7 {[%clk 0:02:46]} 12. Qe1 {[%clk 0:02:52]}  Qc7 {[%clk 0:02:44]} 13. Bd2 {[%clk 0:02:52]}  d5 {[%clk 0:02:37]} 14. e5 {[%clk 0:02:52]}  Ne4 {[%clk 0:02:22]} 15. Nxe4 {[%clk 0:02:51]}  dxe4 {[%clk 0:02:20]} 16. Bxe4 {[%clk 0:02:52]}  Bxe4 {[%clk 0:02:19]} 17. Qxe4 {[%clk 0:02:53]}  Rac8 {[%clk 0:02:16]} 18. Bc3 {[%clk 0:02:43]}  Nc5 {[%clk 0:02:15]} 19. Qe2 {[%clk 0:02:38]}  Na4 {[%clk 0:02:15]} 20. Bb4 {[%clk 0:02:33]}  Bxb4 {[%clk 0:02:13]} 21. axb4 {[%clk 0:02:33]}  Qxc2 {[%clk 0:02:14]} 22. Qxc2 {[%clk 0:02:34]}  Rxc2 {[%clk 0:02:14]} 23. b3 {[%clk 0:02:35]}  Nc3 {[%clk 0:01:42]} 24. Rxa6 {[%clk 0:02:35]}  Rb2 {[%clk 0:01:40]} 25. Nd4 {[%clk 0:02:25]}  h6 {[%clk 0:01:34]} 26. h3 {[%clk 0:02:18]}  Rd8 {[%clk 0:01:22]} 27. Rd6 {[%clk 0:02:12]}  Ra8 {[%clk 0:01:20]} 28. Rc1 {[%clk 0:02:09]}  Ne2 {[%clk 0:01:17]} 29. Nxe2 {[%clk 0:02:04]}  Rxe2 {[%clk 0:01:18]} 30. Rc3 {[%clk 0:02:04]}  h5 {[%clk 0:01:14]} 31. Rg3 {[%clk 0:02:03]}  Re1+ {[%clk 0:01:10]} 32. Kh2 {[%clk 0:02:03]}  Raa1 {[%clk 0:01:05]} 33. Rg5 {[%clk 0:02:01]}  g6 {[%clk 0:00:56]} 34. Kg3 {[%clk 0:01:48]}  Re4 {[%clk 0:00:36]} 35. Rd3 {[%clk 0:01:00]}  Rxb4 {[%clk 0:00:34]} 36. f5 {[%clk 0:00:55]}  exf5 {[%clk 0:00:30]} 37. e6 {[%clk 0:00:48]}  h4+ {[%clk 0:00:30]} 38. Kh2 {[%clk 0:00:45]}  Re4 {[%clk 0:00:25]} 39. exf7+ {[%clk 0:00:38]}  Kxf7 {[%clk 0:00:26]} 40. g3 {[%clk 0:00:13]}  Re2# {[%clk 0:00:26]} 0-1

[Event "January 2 Early 2024"]
[Site "https://www.chess.com"]
[Date "2024.01.02"]
[Round "1"]
[White "Jeet, Jain"]
[Black "Bogumil, Tatiana"]
[Result "1-0"]
[Board "289"]
[TimeControl "180+1"]
[WhiteFideId "5073022"]
[BlackFideId "4110579"]
[WhiteElo "2549"]
[BlackElo "1998"]
[WhiteTeam "IND"]
[BlackTeam "RUS"]
[WhiteClock "0:01:15"]
[BlackClock "0:00:00"]

1. c4 {[%clk 0:02:50]}  Nf6 {[%clk 0:02:32]} 2. Nc3 {[%clk 0:02:38]}  b6 {[%clk 0:02:25]} 3. e4 {[%clk 0:02:36]}  d6 {[%clk 0:02:24]} 4. d4 {[%clk 0:02:35]}  Bb7 {[%clk 0:02:24]} 5. f3 {[%clk 0:02:35]}  Nbd7 {[%clk 0:02:22]} 6. Be3 {[%clk 0:02:36]}  c5 {[%clk 0:02:22]} 7. d5 {[%clk 0:02:36]}  g6 {[%clk 0:02:20]} 8. Qd2 {[%clk 0:02:35]}  h5 {[%clk 0:02:18]} 9. Nge2 {[%clk 0:02:34]}  Bg7 {[%clk 0:02:18]} 10. a4 {[%clk 0:02:32]}  a6 {[%clk 0:02:17]} 11. h4 {[%clk 0:02:28]}  Ne5 {[%clk 0:02:08]} 12. b3 {[%clk 0:02:25]}  Bc8 {[%clk 0:02:02]} 13. Rc1 {[%clk 0:02:21]}  Bd7 {[%clk 0:02:00]} 14. Nf4 {[%clk 0:02:14]}  Qb8 {[%clk 0:01:56]} 15. Nd3 {[%clk 0:02:12]}  Nxd3+ {[%clk 0:01:44]} 16. Bxd3 {[%clk 0:02:13]}  O-O {[%clk 0:01:42]} 17. Bh6 {[%clk 0:02:10]}  Qc8 {[%clk 0:01:41]} 18. Ne2 {[%clk 0:02:06]}  Ne8 {[%clk 0:01:38]} 19. Ng3 {[%clk 0:01:47]}  Rb8 {[%clk 0:01:32]} 20. Ne2 {[%clk 0:01:43]}  b5 {[%clk 0:01:31]} 21. axb5 {[%clk 0:01:39]}  axb5 {[%clk 0:01:32]} 22. Nc3 {[%clk 0:01:33]}  bxc4 {[%clk 0:01:29]} 23. bxc4 {[%clk 0:01:34]}  Rb4 {[%clk 0:01:10]} 24. O-O {[%clk 0:01:25]}  Qb7 {[%clk 0:00:51]} 25. Bxg7 {[%clk 0:01:25]}  Nxg7 {[%clk 0:00:44]} 26. f4 {[%clk 0:01:25]}  Bg4 {[%clk 0:00:41]} 27. e5 {[%clk 0:01:25]}  Nf5 {[%clk 0:00:34]} 28. Ne4 {[%clk 0:01:21]}  Nxh4 {[%clk 0:00:19]} 29. exd6 {[%clk 0:01:21]}  exd6 {[%clk 0:00:15]} 30. Nxd6 {[%clk 0:01:19]}  Qe7 {[%clk 0:00:09]} 31. Ne4 {[%clk 0:01:18]}  Nf5 {[%clk 0:00:00]} 32. Rfe1 {[%clk 0:01:15]} 1-0

[Event "January 2 Early 2024"]
[Site "https://www.chess.com"]
[Date "2024.01.02"]
[Round "1"]
[White "Winkels, Marcel"]
[Black "Toncheva, Nadya"]
[Result "0-1"]
[Board "290"]
[TimeControl "180+1"]
[WhiteFideId "1003887"]
[BlackFideId "2924056"]
[WhiteElo "1996"]
[BlackElo "2549"]
[WhiteTeam "NED"]
[BlackTeam "BUL"]
[WhiteClock "0:00:41"]
[BlackClock "0:00:10"]

1. e4 {[%clk 0:03:00]}  c5 {[%clk 0:02:59]} 2. Nf3 {[%clk 0:02:57]}  Nc6 {[%clk 0:02:59]} 3. d4 {[%clk 0:02:55]}  cxd4 {[%clk 0:03:00]} 4. Nxd4 {[%clk 0:02:55]}  g6 {[%clk 0:03:01]} 5. c4 {[%clk 0:02:54]}  Bg7 {[%clk 0:03:01]} 6. Be3 {[%clk 0:02:54]}  Nf6 {[%clk 0:03:01]} 7. Nc3 {[%clk 0:02:52]}  O-O {[%clk 0:03:02]} 8. Be2 {[%clk 0:02:52]}  d6 {[%clk 0:03:03]} 9. O-O {[%clk 0:02:49]}  Bd7 {[%clk 0:03:03]} 10. Nc2 {[%clk 0:02:46]}  Rc8 {[%clk 0:03:02]} 11. Rc1 {[%clk 0:02:44]}  a6 {[%clk 0:02:59]} 12. b3 {[%clk 0:02:43]}  Qa5 {[%clk 0:02:59]} 13. Qd2 {[%clk 0:02:37]}  Rfe8 {[%clk 0:02:59]} 14. a4 {[%clk 0:02:33]}  Ng4 {[%clk 0:02:44]} 15. Bxg4 {[%clk 0:02:28]}  Bxc3 {[%clk 0:02:33]} 16. Qe2 {[%clk 0:02:24]}  Bxg4 {[%clk 0:02:32]} 17. Qxg4 {[%clk 0:02:22]}  Bg7 {[%clk 0:02:33]} 18. f4 {[%clk 0:02:11]}  h5 {[%clk 0:02:32]} 19. Qg3 {[%clk 0:02:10]}  Kh7 {[%clk 0:02:13]} 20. f5 {[%clk 0:02:08]}  Ne5 {[%clk 0:02:09]} 21. Bd4 {[%clk 0:01:58]}  b5 {[%clk 0:01:40]} 22. axb5 {[%clk 0:01:56]}  axb5 {[%clk 0:01:38]} 23. Ra1 {[%clk 0:01:54]}  Qd2 {[%clk 0:01:34]} 24. Rf2 {[%clk 0:01:38]}  Nf3+ {[%clk 0:01:21]} 25. Qxf3 {[%clk 0:01:28]}  Bxd4 {[%clk 0:01:19]} 26. Nxd4 {[%clk 0:01:28]}  Qxd4 {[%clk 0:01:19]} 27. Rd1 {[%clk 0:01:27]}  Qg7 {[%clk 0:01:05]} 28. cxb5 {[%clk 0:01:25]}  Rc3 {[%clk 0:01:02]} 29. Rd3 {[%clk 0:01:23]}  Rc1+ {[%clk 0:01:01]} 30. Rf1 {[%clk 0:01:23]}  Rec8 {[%clk 0:00:59]} 31. Rdd1 {[%clk 0:01:22]}  R1c3 {[%clk 0:00:54]} 32. Rd3 {[%clk 0:01:16]}  R3c5 {[%clk 0:00:50]} 33. Rd5 {[%clk 0:01:15]}  Rxd5 {[%clk 0:00:43]} 34. exd5 {[%clk 0:01:14]}  Rc3 {[%clk 0:00:41]} 35. Qd1 {[%clk 0:01:12]}  Qe5 {[%clk 0:00:31]} 36. fxg6+ {[%clk 0:01:09]}  fxg6 {[%clk 0:00:32]} 37. Re1 {[%clk 0:01:07]}  Qg5 {[%clk 0:00:12]} 38. Qe2 {[%clk 0:01:03]}  Rc7 {[%clk 0:00:10]} 39. b6 {[%clk 0:01:01]}  Rb7 {[%clk 0:00:10]} 40. Qb5 {[%clk 0:00:47]}  Qd2 {[%clk 0:00:09]} 41. Rf1 {[%clk 0:00:45]}  Qd4+ {[%clk 0:00:08]} 42. Kh1 {[%clk 0:00:43]}  Qxb6 {[%clk 0:00:07]} 43. Qxb6 {[%clk 0:00:40]}  Rxb6 {[%clk 0:00:08]} 44. Rf7+ {[%clk 0:00:40]}  Kh6 {[%clk 0:00:09]} 45. Rxe7 {[%clk 0:00:40]}  Rxb3 {[%clk 0:00:10]} 46. Rd7 {[%clk 0:00:41]}  Rb1# {[%clk 0:00:10]} 0-1

[Event "January 2 Early 2024"]
[Site "https://www.chess.com"]
[Date "2024.01.02"]
[Round "1"]
[White "Manukyan, Sargis V."]
[Black "Djordjevic, Dejan N"]
[Result "1-0"]
[Board "291"]
[TimeControl "180+1"]
[WhiteFideId "13303465"]
[BlackFideId "913316"]
[WhiteElo "2548"]
[BlackElo "1987"]
[WhiteTeam "ARM"]
[BlackTeam "SRB"]
[WhiteClock "0:02:14"]
[BlackClock "0:01:59"]

1. d4 {[%clk 0:03:00]}  Nf6 {[%clk 0:02:58]} 2. Nf3 {[%clk 0:03:01]}  g6 {[%clk 0:02:56]} 3. c4 {[%clk 0:03:01]}  Bg7 {[%clk 0:02:57]} 4. Nc3 {[%clk 0:03:01]}  d6 {[%clk 0:02:57]} 5. e4 {[%clk 0:03:01]}  O-O {[%clk 0:02:58]} 6. Be2 {[%clk 0:03:02]}  Nc6 {[%clk 0:02:58]} 7. O-O {[%clk 0:03:03]}  e5 {[%clk 0:02:58]} 8. d5 {[%clk 0:03:02]}  Ne7 {[%clk 0:02:58]} 9. Ne1 {[%clk 0:03:03]}  Ne8 {[%clk 0:02:59]} 10. Nd3 {[%clk 0:03:04]}  h6 {[%clk 0:02:59]} 11. Bd2 {[%clk 0:03:05]}  f5 {[%clk 0:02:59]} 12. Qc2 {[%clk 0:03:03]}  f4 {[%clk 0:02:59]} 13. h3 {[%clk 0:03:01]}  g5 {[%clk 0:02:58]} 14. f3 {[%clk 0:03:01]}  Nf6 {[%clk 0:02:58]} 15. c5 {[%clk 0:03:02]}  Rf7 {[%clk 0:02:57]} 16. cxd6 {[%clk 0:03:02]}  cxd6 {[%clk 0:02:56]} 17. Rfc1 {[%clk 0:02:59]}  h5 {[%clk 0:02:55]} 18. Nf2 {[%clk 0:02:59]}  Ng6 {[%clk 0:02:54]} 19. Nb5 {[%clk 0:02:59]}  Ne8 {[%clk 0:02:47]} 20. a4 {[%clk 0:02:57]}  a6 {[%clk 0:02:47]} 21. Na3 {[%clk 0:02:53]}  Bf8 {[%clk 0:02:46]} 22. Nc4 {[%clk 0:02:53]}  b6 {[%clk 0:02:41]} 23. a5 {[%clk 0:02:52]}  b5 {[%clk 0:02:41]} 24. Nb6 {[%clk 0:02:52]}  Rc7 {[%clk 0:02:36]} 25. Nxa8 {[%clk 0:02:40]}  Rxc2 {[%clk 0:02:36]} 26. Rxc2 {[%clk 0:02:41]}  g4 {[%clk 0:02:25]} 27. Nb6 {[%clk 0:02:38]}  Bd7 {[%clk 0:02:24]} 28. Nxd7 {[%clk 0:02:34]}  Qxd7 {[%clk 0:02:24]} 29. fxg4 {[%clk 0:02:33]}  hxg4 {[%clk 0:02:21]} 30. Bxg4 {[%clk 0:02:22]}  Qe7 {[%clk 0:02:16]} 31. Rac1 {[%clk 0:02:18]}  Nh4 {[%clk 0:01:59]} 32. Rc8 {[%clk 0:02:14]} 1-0

[Event "January 2 Early 2024"]
[Site "https://www.chess.com"]
[Date "2024.01.02"]
[Round "1"]
[White "Desideri, Ricardo Maruchi"]
[Black "Parfenov, Viktor N."]
[Result "0-1"]
[Board "292"]
[TimeControl "180+1"]
[WhiteFideId "2110440"]
[BlackFideId "4165969"]
[WhiteElo "1986"]
[BlackElo "2545"]
[WhiteTeam "BRA"]
[BlackTeam "RUS"]
[WhiteClock "0:00:00"]
[BlackClock "0:01:48"]

1. e4 {[%clk 0:03:00]}  e5 {[%clk 0:02:57]} 2. f4 {[%clk 0:02:59]}  exf4 {[%clk 0:02:29]} 3. Bc4 {[%clk 0:02:58]}  Qh4+ {[%clk 0:02:22]} 4. Kf1 {[%clk 0:02:57]}  d6 {[%clk 0:02:21]} 5. d4 {[%clk 0:02:55]}  Be6 {[%clk 0:02:17]} 6. Bxe6 {[%clk 0:02:45]}  fxe6 {[%clk 0:02:17]} 7. Nf3 {[%clk 0:02:43]}  Qh6 {[%clk 0:02:14]} 8. Nc3 {[%clk 0:02:33]}  Nc6 {[%clk 0:02:09]} 9. Ne2 {[%clk 0:02:32]}  e5 {[%clk 0:02:04]} 10. dxe5 {[%clk 0:02:30]}  dxe5 {[%clk 0:02:03]} 11. Qd2 {[%clk 0:02:21]}  Bd6 {[%clk 0:01:57]} 12. Qd1 {[%clk 0:02:22]}  O-O-O {[%clk 0:01:57]} 13. Bd2 {[%clk 0:02:16]}  Nf6 {[%clk 0:01:56]} 14. c3 {[%clk 0:02:14]}  g5 {[%clk 0:01:52]} 15. Qc2 {[%clk 0:02:13]}  g4 {[%clk 0:01:51]} 16. Ne1 {[%clk 0:02:09]}  Qg6 {[%clk 0:01:50]} 17. Rd1 {[%clk 0:01:46]}  Nxe4 {[%clk 0:01:49]} 18. b3 {[%clk 0:01:35]}  f3 {[%clk 0:01:48]} 19. gxf3 {[%clk 0:01:34]}  gxf3 {[%clk 0:01:48]} 20. Nxf3 {[%clk 0:00:00]}  Ng3+ {[%clk 0:01:48]} 0-1

[Event "January 2 Early 2024"]
[Site "https://www.chess.com"]
[Date "2024.01.02"]
[Round "1"]
[White "Coro, Lucas"]
[Black "Smirnov, Timofey"]
[Result "1-0"]
[Board "293"]
[TimeControl "180+1"]
[WhiteFideId "147222"]
[BlackFideId "24176427"]
[WhiteElo "2545"]
[BlackElo "1981"]
[WhiteTeam "ARG"]
[BlackTeam "RUS"]
[WhiteClock "0:00:30"]
[BlackClock "0:00:00"]

1. e4 {[%clk 0:03:00]}  e5 {[%clk 0:02:59]} 2. Nf3 {[%clk 0:03:00]}  Nf6 {[%clk 0:02:59]} 3. Nxe5 {[%clk 0:02:59]}  d6 {[%clk 0:02:59]} 4. Nf3 {[%clk 0:02:59]}  Nxe4 {[%clk 0:03:00]} 5. d4 {[%clk 0:02:59]}  d5 {[%clk 0:03:00]} 6. Bd3 {[%clk 0:02:59]}  Nc6 {[%clk 0:03:00]} 7. O-O {[%clk 0:02:59]}  Be7 {[%clk 0:02:59]} 8. Nbd2 {[%clk 0:02:59]}  Bf5 {[%clk 0:02:50]} 9. Re1 {[%clk 0:02:58]}  Nxd2 {[%clk 0:02:44]} 10. Qxd2 {[%clk 0:02:59]}  Bxd3 {[%clk 0:02:42]} 11. Qxd3 {[%clk 0:03:00]}  O-O {[%clk 0:02:41]} 12. c3 {[%clk 0:03:00]}  Re8 {[%clk 0:02:37]} 13. Bf4 {[%clk 0:02:51]}  Rc8 {[%clk 0:02:19]} 14. Re2 {[%clk 0:02:42]}  Bf6 {[%clk 0:02:13]} 15. Rae1 {[%clk 0:02:27]}  Rxe2 {[%clk 0:02:12]} 16. Rxe2 {[%clk 0:02:27]}  Qd7 {[%clk 0:02:12]} 17. h4 {[%clk 0:02:14]}  h6 {[%clk 0:02:11]} 18. Qe3 {[%clk 0:01:55]}  Ne7 {[%clk 0:02:05]} 19. Ne5 {[%clk 0:01:50]}  Qd8 {[%clk 0:01:54]} 20. Qh3 {[%clk 0:01:31]}  Ng6 {[%clk 0:01:36]} 21. Nxg6 {[%clk 0:01:20]}  fxg6 {[%clk 0:01:37]} 22. h5 {[%clk 0:01:16]}  g5 {[%clk 0:01:13]} 23. Bg3 {[%clk 0:00:59]}  Qf8 {[%clk 0:01:12]} 24. Qf5 {[%clk 0:00:59]}  c6 {[%clk 0:01:08]} 25. Qg6 {[%clk 0:00:54]}  Qf7 {[%clk 0:01:00]} 26. Kh2 {[%clk 0:00:53]}  Qxg6 {[%clk 0:00:29]} 27. hxg6 {[%clk 0:00:54]}  Kf8 {[%clk 0:00:29]} 28. Bd6+ {[%clk 0:00:52]}  Kg8 {[%clk 0:00:27]} 29. Kg3 {[%clk 0:00:52]}  Rd8 {[%clk 0:00:18]} 30. Re6 {[%clk 0:00:52]}  a5 {[%clk 0:00:13]} 31. Kg4 {[%clk 0:00:51]}  Kh8 {[%clk 0:00:08]} 32. Kf5 {[%clk 0:00:47]}  Kg8 {[%clk 0:00:08]} 33. f3 {[%clk 0:00:44]}  Kh8 {[%clk 0:00:07]} 34. a4 {[%clk 0:00:41]}  Kg8 {[%clk 0:00:07]} 35. Bc7 {[%clk 0:00:41]}  Ra8 {[%clk 0:00:07]} 36. Re2 {[%clk 0:00:39]}  Kf8 {[%clk 0:00:06]} 37. Bd6+ {[%clk 0:00:37]}  Kg8 {[%clk 0:00:06]} 38. g3 {[%clk 0:00:37]}  Rd8 {[%clk 0:00:04]} 39. Bc7 {[%clk 0:00:36]}  Ra8 {[%clk 0:00:04]} 40. Re6 {[%clk 0:00:34]}  Kf8 {[%clk 0:00:04]} 41. Rd6 {[%clk 0:00:32]}  Ke7 {[%clk 0:00:02]} 42. Re6+ {[%clk 0:00:31]}  Kf8 {[%clk 0:00:02]} 43. Be5 {[%clk 0:00:30]}  Kg8 {[%clk 0:00:01]} 44. Bxf6 {[%clk 0:00:30]}  gxf6 {[%clk 0:00:02]} 45. Re7 {[%clk 0:00:30]}  Kf8 {[%clk 0:00:01]} 46. Rh7 {[%clk 0:00:30]}  Kg8 {[%clk 0:00:02]} 47. Kxf6 {[%clk 0:00:30]}  Rf8+ {[%clk 0:00:02]} 48. Rf7 {[%clk 0:00:31]}  Re8 {[%clk 0:00:02]} 49. Rxb7 {[%clk 0:00:31]}  Re3 {[%clk 0:00:00]} 50. Rb8+ {[%clk 0:00:30]} 1-0

[Event "January 2 Early 2024"]
[Site "https://www.chess.com"]
[Date "2024.01.02"]
[Round "1"]
[White "Lorenzo De La Riva, Lazaro"]
[Black "Jaiveer Mahendru"]
[Result "0-1"]
[Board "294"]
[TimeControl "180+1"]
[WhiteFideId "2268809"]
[BlackFideId "25611151"]
[WhiteElo "1965"]
[BlackElo "2544"]
[WhiteTeam "ESP"]
[BlackTeam "IND"]
[WhiteClock "0:00:00"]
[BlackClock "0:00:38"]

1. Nf3 {[%clk 0:03:00]}  Nf6 {[%clk 0:02:54]} 2. d3 {[%clk 0:03:01]}  g6 {[%clk 0:02:55]} 3. e4 {[%clk 0:03:01]}  d6 {[%clk 0:02:55]} 4. g3 {[%clk 0:03:01]}  Bg7 {[%clk 0:02:55]} 5. Bg2 {[%clk 0:03:01]}  O-O {[%clk 0:02:56]} 6. O-O {[%clk 0:03:01]}  e5 {[%clk 0:02:56]} 7. c4 {[%clk 0:03:01]}  Ne8 {[%clk 0:02:56]} 8. Nc3 {[%clk 0:03:01]}  Nc6 {[%clk 0:02:57]} 9. h3 {[%clk 0:03:00]}  f5 {[%clk 0:02:57]} 10. exf5 {[%clk 0:02:59]}  gxf5 {[%clk 0:02:56]} 11. Bg5 {[%clk 0:02:59]}  Qd7 {[%clk 0:02:53]} 12. Nd5 {[%clk 0:02:55]}  h6 {[%clk 0:02:52]} 13. Bd2 {[%clk 0:02:53]}  Nf6 {[%clk 0:02:44]} 14. Nxf6+ {[%clk 0:02:51]}  Rxf6 {[%clk 0:02:45]} 15. Bc3 {[%clk 0:02:51]}  Rf7 {[%clk 0:02:43]} 16. Nh4 {[%clk 0:02:48]}  Kh7 {[%clk 0:02:39]} 17. f4 {[%clk 0:02:43]}  Bf6 {[%clk 0:02:34]} 18. Qh5 {[%clk 0:02:24]}  Bxh4 {[%clk 0:02:09]} 19. Qxh4 {[%clk 0:02:21]}  Rg7 {[%clk 0:02:07]} 20. fxe5 {[%clk 0:02:16]}  dxe5 {[%clk 0:02:03]} 21. Rxf5 {[%clk 0:02:09]}  Qxf5 {[%clk 0:01:43]} 22. Be4 {[%clk 0:02:08]}  Kg8 {[%clk 0:01:43]} 23. Bxf5 {[%clk 0:02:05]}  Bxf5 {[%clk 0:01:44]} 24. g4 {[%clk 0:01:50]}  Bxd3 {[%clk 0:01:38]} 25. b3 {[%clk 0:01:49]}  Rf8 {[%clk 0:01:34]} 26. Rd1 {[%clk 0:01:23]}  Bh7 {[%clk 0:01:26]} 27. Qxh6 {[%clk 0:01:19]}  Rf3 {[%clk 0:01:25]} 28. Qe6+ {[%clk 0:01:17]}  Rgf7 {[%clk 0:01:16]} 29. Bxe5 {[%clk 0:01:14]}  Rxh3 {[%clk 0:01:15]} 30. Kg2 {[%clk 0:01:04]}  Re3 {[%clk 0:01:09]} 31. Kg1 {[%clk 0:00:42]}  Nxe5 {[%clk 0:01:00]} 32. Rd8+ {[%clk 0:00:38]}  Kg7 {[%clk 0:00:59]} 33. Qd5 {[%clk 0:00:31]}  Re1+ {[%clk 0:00:56]} 34. Kh2 {[%clk 0:00:30]}  Re2+ {[%clk 0:00:51]} 35. Kg3 {[%clk 0:00:27]}  Rf3+ {[%clk 0:00:49]} 36. Kh4 {[%clk 0:00:27]}  Rh2+ {[%clk 0:00:48]} 37. Kg5 {[%clk 0:00:27]}  Nf7+ {[%clk 0:00:49]} 38. Qxf7+ {[%clk 0:00:27]}  Rxf7 {[%clk 0:00:50]} 39. c5 {[%clk 0:00:25]}  Rh6 {[%clk 0:00:49]} 40. Rd4 {[%clk 0:00:24]}  Bg6 {[%clk 0:00:45]} 41. c6 {[%clk 0:00:22]}  bxc6 {[%clk 0:00:45]} 42. b4 {[%clk 0:00:22]}  Bc2 {[%clk 0:00:42]} 43. a4 {[%clk 0:00:20]}  Rg6+ {[%clk 0:00:41]} 44. Kh4 {[%clk 0:00:20]}  Bxa4 {[%clk 0:00:40]} 45. b5 {[%clk 0:00:19]}  Bxb5 {[%clk 0:00:41]} 46. Rd8 {[%clk 0:00:20]}  Rf3 {[%clk 0:00:39]} 47. Rd4 {[%clk 0:00:11]}  Bf1 {[%clk 0:00:37]} 48. g5 {[%clk 0:00:07]}  Rh3+ {[%clk 0:00:36]} 49. Kg4 {[%clk 0:00:07]}  Rh7 {[%clk 0:00:37]} 50. Rd7+ {[%clk 0:00:07]}  Kh8 {[%clk 0:00:36]} 51. Rd8+ {[%clk 0:00:07]}  Rg8 {[%clk 0:00:37]} 52. Rd1 {[%clk 0:00:08]}  Be2+ {[%clk 0:00:37]} 53. Kg3 {[%clk 0:00:00]}  Bxd1 {[%clk 0:00:38]} 0-1

[Event "January 2 Early 2024"]
[Site "https://www.chess.com"]
[Date "2024.01.02"]
[Round "1"]
[White "Cornelison, Paul"]
[Black "Ghevondyan, Arman"]
[Result "0-1"]
[Board "296"]
[TimeControl "180+1"]
[WhiteFideId "2004186"]
[BlackFideId "13312073"]
[WhiteElo "1949"]
[BlackElo "2542"]
[WhiteTeam "USA"]
[BlackTeam "ARM"]
[WhiteClock "0:02:08"]
[BlackClock "0:02:08"]

1. e4 {[%clk 0:03:00]}  c5 {[%clk 0:02:59]} 2. Nf3 {[%clk 0:03:00]}  Nc6 {[%clk 0:02:59]} 3. d4 {[%clk 0:03:00]}  cxd4 {[%clk 0:02:58]} 4. c3 {[%clk 0:03:01]}  d3 {[%clk 0:02:59]} 5. Bxd3 {[%clk 0:03:00]}  g6 {[%clk 0:02:59]} 6. O-O {[%clk 0:03:01]}  Bg7 {[%clk 0:02:59]} 7. Be3 {[%clk 0:03:01]}  Nf6 {[%clk 0:02:58]} 8. Nd4 {[%clk 0:03:00]}  d6 {[%clk 0:02:56]} 9. Nd2 {[%clk 0:02:58]}  O-O {[%clk 0:02:55]} 10. Kh1 {[%clk 0:02:56]}  d5 {[%clk 0:02:48]} 11. Nxc6 {[%clk 0:02:54]}  bxc6 {[%clk 0:02:49]} 12. e5 {[%clk 0:02:54]}  Ng4 {[%clk 0:02:47]} 13. Bc5 {[%clk 0:02:44]}  Nxe5 {[%clk 0:02:46]} 14. Bc2 {[%clk 0:02:44]}  Nd7 {[%clk 0:02:44]} 15. Nb3 {[%clk 0:02:42]}  Nxc5 {[%clk 0:02:43]} 16. Nxc5 {[%clk 0:02:41]}  e5 {[%clk 0:02:43]} 17. Qd2 {[%clk 0:02:38]}  Rb8 {[%clk 0:02:42]} 18. b4 {[%clk 0:02:37]}  a5 {[%clk 0:02:39]} 19. a3 {[%clk 0:02:36]}  e4 {[%clk 0:02:38]} 20. Rfe1 {[%clk 0:02:35]}  f5 {[%clk 0:02:23]} 21. Rad1 {[%clk 0:02:35]}  Qe7 {[%clk 0:02:17]} 22. Bb3 {[%clk 0:02:30]}  Kh8 {[%clk 0:02:16]} 23. c4 {[%clk 0:02:28]}  d4 {[%clk 0:02:13]} 24. f3 {[%clk 0:02:25]}  axb4 {[%clk 0:02:12]} 25. axb4 {[%clk 0:02:24]}  e3 {[%clk 0:02:12]} 26. Qd3 {[%clk 0:02:18]}  Rxb4 {[%clk 0:02:10]} 27. Ba2 {[%clk 0:02:08]}  Qxc5 {[%clk 0:02:08]} 0-1

[Event "January 2 Early 2024"]
[Site "https://www.chess.com"]
[Date "2024.01.02"]
[Round "1"]
[White "Thake, Conrad"]
[Black "Baches Garcia, Guillermo"]
[Result "0-1"]
[Board "298"]
[TimeControl "180+1"]
[WhiteFideId "5602947"]
[BlackFideId "2209764"]
[WhiteElo "1879"]
[BlackElo "2538"]
[WhiteTeam "MLT"]
[BlackTeam "ESP"]
[WhiteClock "0:00:00"]
[BlackClock "0:00:38"]

1. c4 {[%clk 0:03:00]}  e6 {[%clk 0:02:55]} 2. Nc3 {[%clk 0:03:00]}  d5 {[%clk 0:02:55]} 3. d4 {[%clk 0:02:57]}  a6 {[%clk 0:02:55]} 4. cxd5 {[%clk 0:02:53]}  exd5 {[%clk 0:02:56]} 5. Nf3 {[%clk 0:02:53]}  Nf6 {[%clk 0:02:56]} 6. Bf4 {[%clk 0:02:52]}  c5 {[%clk 0:02:55]} 7. e3 {[%clk 0:02:51]}  c4 {[%clk 0:02:55]} 8. Ne5 {[%clk 0:02:48]}  b5 {[%clk 0:02:55]} 9. a3 {[%clk 0:02:40]}  Be7 {[%clk 0:02:55]} 10. g3 {[%clk 0:02:26]}  O-O {[%clk 0:02:50]} 11. Bg2 {[%clk 0:02:26]}  Bb7 {[%clk 0:02:50]} 12. O-O {[%clk 0:02:26]}  Nbd7 {[%clk 0:02:44]} 13. Nxd7 {[%clk 0:02:22]}  Qxd7 {[%clk 0:02:43]} 14. Re1 {[%clk 0:02:18]}  Rad8 {[%clk 0:02:35]} 15. e4 {[%clk 0:02:09]}  dxe4 {[%clk 0:02:27]} 16. Nxe4 {[%clk 0:02:01]}  Nxe4 {[%clk 0:02:25]} 17. Bxe4 {[%clk 0:02:01]}  Bxe4 {[%clk 0:02:24]} 18. Rxe4 {[%clk 0:02:00]}  Bf6 {[%clk 0:02:21]} 19. Be3 {[%clk 0:01:48]}  Qd5 {[%clk 0:02:17]} 20. Qg4 {[%clk 0:01:42]}  a5 {[%clk 0:02:08]} 21. Re1 {[%clk 0:01:32]}  b4 {[%clk 0:02:07]} 22. axb4 {[%clk 0:01:31]}  axb4 {[%clk 0:02:08]} 23. h4 {[%clk 0:01:26]}  c3 {[%clk 0:02:01]} 24. bxc3 {[%clk 0:01:25]}  bxc3 {[%clk 0:02:02]} 25. Rc1 {[%clk 0:01:13]}  Rc8 {[%clk 0:02:00]} 26. Rc2 {[%clk 0:01:04]}  Qb3 {[%clk 0:01:54]} 27. Qe2 {[%clk 0:01:02]}  Rc4 {[%clk 0:01:48]} 28. Kh2 {[%clk 0:00:33]}  h5 {[%clk 0:01:47]} 29. Rc1 {[%clk 0:00:19]}  g6 {[%clk 0:01:37]} 30. Qd3 {[%clk 0:00:16]}  Rfc8 {[%clk 0:01:29]} 31. d5 {[%clk 0:00:16]}  Rxe4 {[%clk 0:01:24]} 32. Qxe4 {[%clk 0:00:15]}  c2 {[%clk 0:01:24]} 33. d6 {[%clk 0:00:12]}  Kg7 {[%clk 0:00:58]} 34. Bd4 {[%clk 0:00:06]}  Qe6 {[%clk 0:00:45]} 35. Bxf6+ {[%clk 0:00:05]}  Qxf6 {[%clk 0:00:45]} 36. Qf4 {[%clk 0:00:00]}  Qb2 {[%clk 0:00:38]} 0-1